[Event "Early-Titled-Tuesday-Blitz-May-14-2024"]
[Site "Chess.com"]
[Date "2024.05.14"]
[Round "10"]
[White "kuchma777"]
[Black "Arhan_Anand"]
[Result "0-1"]
[WhiteElo "2531"]
[BlackElo "2631"]
[TimeControl "180+1"]
[EndTime "9:56:43 PDT"]
[Termination "Arhan_Anand won by checkmate"]

1. e4 {[%clk 0:03:00.9]} 1... c5 {[%clk 0:02:59.7]} 2. Nf3 {[%clk 0:03:00.8]}
2... g6 {[%clk 0:02:59.7]} 3. c3 {[%clk 0:02:59.1]} 3... Nf6 {[%clk 0:02:58.7]}
4. e5 {[%clk 0:02:59.2]} 4... Nd5 {[%clk 0:02:58.9]} 5. d4 {[%clk 0:03:00.1]}
5... cxd4 {[%clk 0:02:59.8]} 6. cxd4 {[%clk 0:02:54.6]} 6... d6 {[%clk 0:02:59]}
7. Nc3 {[%clk 0:02:45.5]} 7... Nxc3 {[%clk 0:02:55.7]} 8. bxc3 {[%clk
0:02:46.4]} 8... dxe5 {[%clk 0:02:53]} 9. Nxe5 {[%clk 0:02:45.3]} 9... Bg7
{[%clk 0:02:53.2]} 10. Nf3 {[%clk 0:02:34.3]} 10... O-O {[%clk 0:02:52.2]} 11.
Bd3 {[%clk 0:02:33.7]} 11... Nc6 {[%clk 0:02:50.6]} 12. O-O {[%clk 0:02:33.2]}
12... e5 {[%clk 0:02:50.6]} 13. Be4 {[%clk 0:02:18.9]} 13... exd4 {[%clk
0:02:47.5]} 14. Bxc6 {[%clk 0:02:18]} 14... bxc6 {[%clk 0:02:48.4]} 15. Nxd4
{[%clk 0:02:18.9]} 15... c5 {[%clk 0:02:46.7]} 16. Ne2 {[%clk 0:02:16.5]} 16...
Qc7 {[%clk 0:02:44.6]} 17. Be3 {[%clk 0:02:16.5]} 17... Ba6 {[%clk 0:02:42.6]}
18. Re1 {[%clk 0:01:49.9]} 18... Rfd8 {[%clk 0:02:33.6]} 19. Qc1 {[%clk
0:01:49]} 19... Rd3 {[%clk 0:02:30]} 20. Bh6 {[%clk 0:01:41.3]} 20... Be5 {[%clk
0:02:23.4]} 21. Bf4 {[%clk 0:01:40.3]} 21... Re8 {[%clk 0:02:18.6]} 22. Bg3
{[%clk 0:01:03.5]} 22... Re6 {[%clk 0:01:53.1]} 23. Qa3 {[%clk 0:00:49.7]} 23...
Bxg3 {[%clk 0:01:26.4]} 24. hxg3 {[%clk 0:00:37.5]} 24... Qe7 {[%clk 0:01:24.8]}
25. Qxa6 {[%clk 0:00:28.2]} 25... Rxa6 {[%clk 0:01:24.1]} 26. Nf4 {[%clk
0:00:26.4]} 26... Qd7 {[%clk 0:01:23]} 27. c4 {[%clk 0:00:20.5]} 27... Rd4
{[%clk 0:01:22.3]} 28. Rab1 {[%clk 0:00:18.5]} 28... Rb6 {[%clk 0:01:21.8]} 29.
Rbc1 {[%clk 0:00:17]} 29... Rxf4 {[%clk 0:01:19.8]} 30. gxf4 {[%clk 0:00:17.2]}
30... Qd4 {[%clk 0:01:19.8]} 31. Red1 {[%clk 0:00:15.9]} 31... Qxf4 {[%clk
0:01:19.4]} 32. Rc3 {[%clk 0:00:14.3]} 32... Rd6 {[%clk 0:01:17]} 33. Re1 {[%clk
0:00:14.1]} 33... Qd2 {[%clk 0:01:16.2]} 34. Rce3 {[%clk 0:00:14.3]} 34... Kg7
{[%clk 0:01:16]} 35. g3 {[%clk 0:00:14.5]} 35... Re6 {[%clk 0:01:15.4]} 36. Kg2
{[%clk 0:00:15.4]} 36... Rxe3 {[%clk 0:01:14.6]} 37. Rxe3 {[%clk 0:00:16.3]}
37... Qxa2 {[%clk 0:01:14.7]} 38. Rc3 {[%clk 0:00:16.3]} 38... a5 {[%clk
0:01:14.3]} 39. Rd3 {[%clk 0:00:16.6]} 39... Qxc4 {[%clk 0:01:13.9]} 40. Rd7
{[%clk 0:00:17.5]} 40... a4 {[%clk 0:01:14.1]} 41. Ra7 {[%clk 0:00:18]} 41... a3
{[%clk 0:01:14.3]} 42. Kf3 {[%clk 0:00:18.8]} 42... a2 {[%clk 0:01:14.6]} 43. g4
{[%clk 0:00:19.7]} 43... Qc3+ {[%clk 0:01:14.8]} 44. Kf4 {[%clk 0:00:19.9]}
44... a1=Q {[%clk 0:01:15.7]} 45. Kg5 {[%clk 0:00:20.4]} 45... Qf6# {[%clk
0:01:15.5]} 0-1

[Event "Early-Titled-Tuesday-Blitz-May-14-2024"]
[Site "Chess.com"]
[Date "2024.05.14"]
[Round "10"]
[White "Moon_stone123"]
[Black "Saxar85"]
[Result "0-1"]
[WhiteElo "2619"]
[BlackElo "2789"]
[TimeControl "180+1"]
[EndTime "9:56:51 PDT"]
[Termination "Saxar85 won by checkmate"]

1. d4 {[%clk 0:03:00.6]} 1... Nf6 {[%clk 0:02:57.8]} 2. Nf3 {[%clk 0:02:58.5]}
2... d6 {[%clk 0:02:57.4]} 3. c4 {[%clk 0:02:56.1]} 3... g6 {[%clk 0:02:57]} 4.
Nc3 {[%clk 0:02:53]} 4... Bf5 {[%clk 0:02:56.8]} 5. Nh4 {[%clk 0:02:29.9]} 5...
Bd7 {[%clk 0:02:52.3]} 6. e4 {[%clk 0:02:22.8]} 6... Bg7 {[%clk 0:02:51.4]} 7.
Nf3 {[%clk 0:02:22.1]} 7... O-O {[%clk 0:02:47.5]} 8. Be2 {[%clk 0:02:20.2]}
8... e5 {[%clk 0:02:47]} 9. dxe5 {[%clk 0:02:09.7]} 9... dxe5 {[%clk 0:02:45.8]}
10. Nxe5 {[%clk 0:02:09.8]} 10... Nxe4 {[%clk 0:02:35.5]} 11. Nxe4 {[%clk
0:02:05]} 11... Bxe5 {[%clk 0:02:35]} 12. O-O {[%clk 0:02:01.9]} 12... Bc6
{[%clk 0:02:25.7]} 13. Ng3 {[%clk 0:01:58.7]} 13... Nd7 {[%clk 0:02:21.1]} 14.
Bh6 {[%clk 0:01:57.4]} 14... Re8 {[%clk 0:02:17.9]} 15. Bf3 {[%clk 0:01:54.7]}
15... Bxb2 {[%clk 0:02:02.4]} 16. Rb1 {[%clk 0:01:53.7]} 16... Bh8 {[%clk
0:01:55.4]} 17. Bxc6 {[%clk 0:01:52.8]} 17... bxc6 {[%clk 0:01:55.2]} 18. Qa4
{[%clk 0:01:46.8]} 18... Nb6 {[%clk 0:01:42.7]} 19. Qxc6 {[%clk 0:01:44]} 19...
Qd6 {[%clk 0:01:41.6]} 20. Qxd6 {[%clk 0:00:56.6]} 20... cxd6 {[%clk 0:01:40.8]}
21. Rb4 {[%clk 0:00:57.2]} 21... Rac8 {[%clk 0:01:36.4]} 22. Be3 {[%clk
0:00:50.4]} 22... Rxc4 {[%clk 0:01:30.3]} 23. Rxc4 {[%clk 0:00:50]} 23... Nxc4
{[%clk 0:01:30.2]} 24. Bxa7 {[%clk 0:00:50.6]} 24... Ra8 {[%clk 0:01:30]} 25.
Rc1 {[%clk 0:00:38.5]} 25... d5 {[%clk 0:01:25.1]} 26. Bc5 {[%clk 0:00:28.3]}
26... Rxa2 {[%clk 0:01:22.6]} 27. Re1 {[%clk 0:00:24.5]} 27... Be5 {[%clk
0:01:18.6]} 28. Rd1 {[%clk 0:00:17.6]} 28... Ra5 {[%clk 0:01:06.7]} 29. Rxd5
{[%clk 0:00:13.5]} 29... Bd6 {[%clk 0:01:04.8]} 30. Rd4 {[%clk 0:00:05.3]} 30...
Rxc5 {[%clk 0:01:02.8]} 31. Ne4 {[%clk 0:00:04]} 31... Rc6 {[%clk 0:01:02.9]}
32. Nxd6 {[%clk 0:00:02.9]} 32... Rxd6 {[%clk 0:00:59.8]} 33. Rxc4 {[%clk
0:00:01.4]} 33... Rd1# {[%clk 0:00:59.2]} 0-1

[Event "Early-Titled-Tuesday-Blitz-May-14-2024"]
[Site "Chess.com"]
[Date "2024.05.14"]
[Round "10"]
[White "grozdanovic_a"]
[Black "PonyQueen07"]
[Result "1-0"]
[WhiteElo "2301"]
[BlackElo "2109"]
[TimeControl "180+1"]
[EndTime "9:56:51 PDT"]
[Termination "grozdanovic_a won on time"]

1. d4 {[%clk 0:02:57.3]} 1... Nf6 {[%clk 0:02:59]} 2. g3 {[%clk 0:02:56.6]} 2...
e6 {[%clk 0:02:56.7]} 3. Bg2 {[%clk 0:02:57]} 3... d5 {[%clk 0:02:56.8]} 4. Nf3
{[%clk 0:02:57]} 4... b6 {[%clk 0:02:54.9]} 5. O-O {[%clk 0:02:55.7]} 5... Bd6
{[%clk 0:02:45.3]} 6. Nbd2 {[%clk 0:02:47.5]} 6... O-O {[%clk 0:02:43.5]} 7. c4
{[%clk 0:02:48.2]} 7... Bb7 {[%clk 0:02:41]} 8. b3 {[%clk 0:02:47.1]} 8... dxc4
{[%clk 0:02:39.7]} 9. bxc4 {[%clk 0:02:45.5]} 9... Nbd7 {[%clk 0:02:38.3]} 10.
Bb2 {[%clk 0:02:43.1]} 10... Ne4 {[%clk 0:02:28.1]} 11. Nxe4 {[%clk 0:02:41.9]}
11... Bxe4 {[%clk 0:02:26]} 12. d5 {[%clk 0:02:33.6]} 12... exd5 {[%clk
0:02:12.1]} 13. cxd5 {[%clk 0:02:33.8]} 13... Bxf3 {[%clk 0:02:08.8]} 14. Bxf3
{[%clk 0:02:33.2]} 14... Ne5 {[%clk 0:02:03.4]} 15. Bg2 {[%clk 0:02:32.7]} 15...
Rc8 {[%clk 0:01:58.8]} 16. Rc1 {[%clk 0:02:30.3]} 16... Qe7 {[%clk 0:01:45.1]}
17. e3 {[%clk 0:02:30.2]} 17... Ba3 {[%clk 0:01:36.3]} 18. Bxa3 {[%clk 0:02:28]}
18... Qxa3 {[%clk 0:01:36]} 19. Qb3 {[%clk 0:02:28.6]} 19... Qxb3 {[%clk
0:01:33.6]} 20. axb3 {[%clk 0:02:29.3]} 20... a5 {[%clk 0:01:29.3]} 21. Rc3
{[%clk 0:02:25.4]} 21... Nd7 {[%clk 0:01:13.7]} 22. Bh3 {[%clk 0:02:22.8]} 22...
f5 {[%clk 0:01:13.5]} 23. e4 {[%clk 0:02:23]} 23... Nc5 {[%clk 0:01:09.9]} 24.
Bxf5 {[%clk 0:02:19.4]} 24... Rce8 {[%clk 0:00:59.9]} 25. f3 {[%clk 0:02:19.6]}
25... g6 {[%clk 0:00:48.6]} 26. Bh3 {[%clk 0:02:19.7]} 26... Ra8 {[%clk
0:00:33.6]} 27. Re1 {[%clk 0:02:14.9]} 27... a4 {[%clk 0:00:28.5]} 28. bxa4
{[%clk 0:02:12.8]} 28... Rxa4 {[%clk 0:00:26.5]} 29. e5 {[%clk 0:02:11.5]} 29...
Rd4 {[%clk 0:00:22.2]} 30. e6 {[%clk 0:01:57.9]} 30... Re8 {[%clk 0:00:17.7]}
31. Re5 {[%clk 0:01:45.9]} 31... Rd1+ {[%clk 0:00:12.8]} 32. Kg2 {[%clk
0:01:41]} 32... Rd2+ {[%clk 0:00:12.2]} 33. Kf1 {[%clk 0:01:41.5]} 33... Rxh2
{[%clk 0:00:06.1]} 34. Bg2 {[%clk 0:01:35.6]} 34... Re7 {[%clk 0:00:03.6]} 35.
g4 {[%clk 0:01:31.7]} 35... Rh6 {[%clk 0:00:02.8]} 36. Ra3 {[%clk 0:01:29.5]}
36... Kg7 {[%clk 0:00:02.8]} 37. Ra8 {[%clk 0:01:28]} 37... Kf6 {[%clk
0:00:00.4]} 38. f4 {[%clk 0:01:28.4]} 38... Kg7 {[%clk 0:00:00.6]} 39. Rd8
{[%clk 0:01:24]} 39... Rh4 {[%clk 0:00:01]} 40. Bf3 {[%clk 0:01:21.7]} 40... Rh2
{[%clk 0:00:00.7]} 41. d6 {[%clk 0:01:13.8]} 41... cxd6 {[%clk 0:00:00.4]} 42.
Rxd6 {[%clk 0:01:14.4]} 42... Rh4 {[%clk 0:00:00.4]} 43. Rxb6 {[%clk 0:01:13.8]}
1-0

[Event "Early-Titled-Tuesday-Blitz-May-14-2024"]
[Site "Chess.com"]
[Date "2024.05.14"]
[Round "10"]
[White "Let_it_be_1"]
[Black "ilqar_74"]
[Result "0-1"]
[WhiteElo "2634"]
[BlackElo "2825"]
[TimeControl "180+1"]
[EndTime "9:56:54 PDT"]
[Termination "ilqar_74 won by resignation"]

1. e4 {[%clk 0:03:00.9]} 1... c5 {[%clk 0:02:59.5]} 2. Nf3 {[%clk 0:03:00.5]}
2... d6 {[%clk 0:02:58.9]} 3. d4 {[%clk 0:03:00.8]} 3... cxd4 {[%clk 0:02:59.5]}
4. Nxd4 {[%clk 0:03:01.1]} 4... Nf6 {[%clk 0:03:00.2]} 5. Nc3 {[%clk 0:03:01.3]}
5... a6 {[%clk 0:03:00.6]} 6. Be2 {[%clk 0:03:01.6]} 6... e5 {[%clk 0:03:00.4]}
7. Nb3 {[%clk 0:03:01.8]} 7... Be7 {[%clk 0:03:00.5]} 8. O-O {[%clk 0:03:01.8]}
8... O-O {[%clk 0:03:00.2]} 9. Kh1 {[%clk 0:03:02.2]} 9... Nbd7 {[%clk
0:03:00.7]} 10. a4 {[%clk 0:02:55.6]} 10... b6 {[%clk 0:03:00.9]} 11. Be3 {[%clk
0:02:50.8]} 11... Bb7 {[%clk 0:03:00.8]} 12. f3 {[%clk 0:02:51.1]} 12... Rc8
{[%clk 0:03:00.6]} 13. Qd2 {[%clk 0:02:49.7]} 13... Qc7 {[%clk 0:02:57]} 14.
Rfd1 {[%clk 0:02:49.3]} 14... Rfd8 {[%clk 0:02:57.1]} 15. Bg5 {[%clk 0:02:31.8]}
15... h6 {[%clk 0:02:55.5]} 16. Bh4 {[%clk 0:02:14.9]} 16... Nxe4 {[%clk
0:02:43.4]} 17. Nxe4 {[%clk 0:02:14.2]} 17... Bxh4 {[%clk 0:02:43.8]} 18. Qxd6
{[%clk 0:01:36.7]} 18... Qxc2 {[%clk 0:02:37.4]} 19. Qd3 {[%clk 0:01:23.1]}
19... Qxd3 {[%clk 0:02:33.1]} 20. Bxd3 {[%clk 0:01:13.1]} 20... Be7 {[%clk
0:02:30.9]} 21. Rac1 {[%clk 0:01:05.1]} 21... Nf8 {[%clk 0:02:19.3]} 22. Rxc8
{[%clk 0:01:00.7]} 22... Bxc8 {[%clk 0:02:16]} 23. Bc2 {[%clk 0:00:54.8]} 23...
Rxd1+ {[%clk 0:02:15.1]} 24. Bxd1 {[%clk 0:00:54.7]} 24... Ne6 {[%clk
0:02:15.7]} 25. Kg1 {[%clk 0:00:49.4]} 25... f5 {[%clk 0:02:14.7]} 26. Nc3
{[%clk 0:00:49.1]} 26... Bb7 {[%clk 0:02:10.5]} 27. Bc2 {[%clk 0:00:48.3]} 27...
g6 {[%clk 0:02:09.4]} 28. Kf2 {[%clk 0:00:43]} 28... Kf7 {[%clk 0:02:09.2]} 29.
Bd3 {[%clk 0:00:40.6]} 29... Kf6 {[%clk 0:02:05.7]} 30. Bc4 {[%clk 0:00:39.2]}
30... Nc5 {[%clk 0:02:00.8]} 31. Nd5+ {[%clk 0:00:37.1]} 31... Bxd5 {[%clk
0:01:58.3]} 32. Bxd5 {[%clk 0:00:37.3]} 32... Nd3+ {[%clk 0:01:58.4]} 33. Ke3
{[%clk 0:00:37.6]} 33... Nxb2 {[%clk 0:01:59]} 34. a5 {[%clk 0:00:36.4]} 34...
bxa5 {[%clk 0:01:58.4]} 35. Nxa5 {[%clk 0:00:35.6]} 35... Na4 {[%clk 0:01:52.4]}
36. Kd3 {[%clk 0:00:29.3]} 36... Bd8 {[%clk 0:01:48.7]} 37. Nc6 {[%clk
0:00:24.7]} 37... Bc7 {[%clk 0:01:45.3]} 38. Kc4 {[%clk 0:00:20.4]} 38... Nb6+
{[%clk 0:01:42.2]} 39. Kc5 {[%clk 0:00:20.9]} 39... Nxd5 {[%clk 0:01:42.3]} 40.
Kxd5 {[%clk 0:00:21.8]} 40... a5 {[%clk 0:01:42.9]} 41. Kc4 {[%clk 0:00:18.6]}
41... Ke6 {[%clk 0:01:37.4]} 42. Na7 {[%clk 0:00:18.9]} 42... Bd6 {[%clk
0:01:28.6]} 43. Kb5 {[%clk 0:00:14.1]} 43... Bb4 {[%clk 0:01:28.2]} 44. Nc6
{[%clk 0:00:13.9]} 44... Kd5 {[%clk 0:01:21.7]} 45. g4 {[%clk 0:00:07.6]} 45...
e4 {[%clk 0:01:20.1]} 46. gxf5 {[%clk 0:00:07.3]} 46... gxf5 {[%clk 0:01:21]}
47. Ne7+ {[%clk 0:00:06.5]} 47... Bxe7 {[%clk 0:01:20.5]} 0-1

[Event "Early-Titled-Tuesday-Blitz-May-14-2024"]
[Site "Chess.com"]
[Date "2024.05.14"]
[Round "10"]
[White "Szachulec75"]
[Black "Raud100"]
[Result "0-1"]
[WhiteElo "2138"]
[BlackElo "2355"]
[TimeControl "180+1"]
[EndTime "9:56:54 PDT"]
[Termination "Raud100 won on time"]

1. Nf3 {[%clk 0:02:54.1]} 1... d5 {[%clk 0:03:00.1]} 2. g3 {[%clk 0:02:53.4]}
2... c6 {[%clk 0:03:00.3]} 3. Bg2 {[%clk 0:02:52.2]} 3... Nf6 {[%clk 0:03:01.2]}
4. d3 {[%clk 0:02:52.5]} 4... Bg4 {[%clk 0:03:00.7]} 5. O-O {[%clk 0:02:53.4]}
5... e6 {[%clk 0:02:59.5]} 6. Nbd2 {[%clk 0:02:53.1]} 6... Nbd7 {[%clk
0:02:59.3]} 7. h3 {[%clk 0:02:48.9]} 7... Bh5 {[%clk 0:02:58.5]} 8. e4 {[%clk
0:02:49.4]} 8... dxe4 {[%clk 0:02:53.6]} 9. dxe4 {[%clk 0:02:48.8]} 9... Bc5
{[%clk 0:02:53.2]} 10. c3 {[%clk 0:02:46.2]} 10... O-O {[%clk 0:02:52.7]} 11.
Qc2 {[%clk 0:02:46.1]} 11... Qe7 {[%clk 0:02:52.1]} 12. g4 {[%clk 0:02:40.6]}
12... Bg6 {[%clk 0:02:51.7]} 13. Nh4 {[%clk 0:02:41.5]} 13... Bxe4 {[%clk
0:02:35.1]} 14. Nxe4 {[%clk 0:02:26.1]} 14... Nxe4 {[%clk 0:02:34.9]} 15. Qxe4
{[%clk 0:02:03.8]} 15... Qxh4 {[%clk 0:02:34.2]} 16. b4 {[%clk 0:02:02.2]} 16...
Nf6 {[%clk 0:02:31.8]} 17. Qe5 {[%clk 0:01:57.3]} 17... Bb6 {[%clk 0:02:30.1]}
18. Bg5 {[%clk 0:01:56.1]} 18... Nxg4 {[%clk 0:02:19.2]} 19. hxg4 {[%clk
0:01:56.7]} 19... Qxg4 {[%clk 0:02:19]} 20. Be3 {[%clk 0:01:49.6]} 20... Rad8
{[%clk 0:02:11.8]} 21. Qe4 {[%clk 0:01:38.2]} 21... Qxe4 {[%clk 0:01:57.8]} 22.
Bxe4 {[%clk 0:01:37.4]} 22... f5 {[%clk 0:01:58.7]} 23. Bxb6 {[%clk 0:01:26.8]}
23... axb6 {[%clk 0:01:57.4]} 24. Bc2 {[%clk 0:01:22.2]} 24... Kf7 {[%clk
0:01:54.8]} 25. Rfe1 {[%clk 0:01:21.1]} 25... Kf6 {[%clk 0:01:53.8]} 26. Re2
{[%clk 0:01:17.6]} 26... e5 {[%clk 0:01:52]} 27. Rae1 {[%clk 0:01:16.9]} 27...
Rfe8 {[%clk 0:01:51.5]} 28. Kg2 {[%clk 0:01:08.9]} 28... h5 {[%clk 0:01:49.7]}
29. f4 {[%clk 0:01:01.2]} 29... e4 {[%clk 0:01:48.6]} 30. Rh1 {[%clk 0:01:01.3]}
30... g6 {[%clk 0:01:47.8]} 31. Kg3 {[%clk 0:00:58]} 31... Rd6 {[%clk
0:01:46.9]} 32. Rd1 {[%clk 0:00:55.8]} 32... Red8 {[%clk 0:01:42.1]} 33. Rxd6+
{[%clk 0:00:54.2]} 33... Rxd6 {[%clk 0:01:43]} 34. Kf2 {[%clk 0:00:48.4]} 34...
b5 {[%clk 0:01:37.9]} 35. Ke3 {[%clk 0:00:40.5]} 35... Rd8 {[%clk 0:01:35.7]}
36. Rg2 {[%clk 0:00:36.8]} 36... Ra8 {[%clk 0:01:30.7]} 37. Bb3 {[%clk
0:00:34.8]} 37... Rd8 {[%clk 0:01:30.4]} 38. Bc2 {[%clk 0:00:35.3]} 38... Rd7
{[%clk 0:01:26.1]} 39. Ke2 {[%clk 0:00:26.2]} 39... h4 {[%clk 0:01:20.5]} 40.
Ke3 {[%clk 0:00:24.2]} 40... h3 {[%clk 0:01:19.8]} 41. Rh2 {[%clk 0:00:22.2]}
41... Rh7 {[%clk 0:01:19.9]} 42. Kf2 {[%clk 0:00:13.4]} 42... Rh4 {[%clk
0:01:18.8]} 43. Kf1 {[%clk 0:00:12.3]} 43... Rxf4+ {[%clk 0:01:18.6]} 44. Ke2
{[%clk 0:00:10.4]} 44... Rf3 {[%clk 0:01:17.6]} 45. Bd1 {[%clk 0:00:09.2]} 45...
Rxc3 {[%clk 0:01:17.1]} 0-1

[Event "Early-Titled-Tuesday-Blitz-May-14-2024"]
[Site "Chess.com"]
[Date "2024.05.14"]
[Round "10"]
[White "kanzaww"]
[Black "MalyDominator"]
[Result "1-0"]
[WhiteElo "2517"]
[BlackElo "2633"]
[TimeControl "180+1"]
[EndTime "9:56:56 PDT"]
[Termination "kanzaww won by resignation"]

1. e4 {[%clk 0:03:00.9]} 1... c5 {[%clk 0:02:58.9]} 2. Nf3 {[%clk 0:03:00.5]}
2... d6 {[%clk 0:02:59.3]} 3. d4 {[%clk 0:02:58.5]} 3... cxd4 {[%clk 0:03:00.2]}
4. Nxd4 {[%clk 0:02:55.7]} 4... Nf6 {[%clk 0:03:00.5]} 5. Nc3 {[%clk 0:02:54.6]}
5... Nc6 {[%clk 0:03:00.7]} 6. Bb5 {[%clk 0:02:42.9]} 6... Bd7 {[%clk
0:02:59.5]} 7. Bg5 {[%clk 0:02:43]} 7... Qb6 {[%clk 0:02:58.7]} 8. Bxf6 {[%clk
0:01:40]} 8... gxf6 {[%clk 0:02:57.1]} 9. Nb3 {[%clk 0:01:31.6]} 9... a6 {[%clk
0:02:46.9]} 10. Bd3 {[%clk 0:01:15]} 10... e6 {[%clk 0:02:43.5]} 11. Qf3 {[%clk
0:01:13.1]} 11... Be7 {[%clk 0:02:43]} 12. O-O-O {[%clk 0:01:12.1]} 12... O-O-O
{[%clk 0:02:43.2]} 13. h4 {[%clk 0:01:02.4]} 13... h5 {[%clk 0:02:40.6]} 14. Qe2
{[%clk 0:01:01.2]} 14... Kb8 {[%clk 0:02:39.8]} 15. Kb1 {[%clk 0:00:56.5]} 15...
Rdg8 {[%clk 0:02:15.9]} 16. g3 {[%clk 0:00:56.3]} 16... Ne5 {[%clk 0:02:10.7]}
17. Rhf1 {[%clk 0:00:51.6]} 17... Bc6 {[%clk 0:02:00.3]} 18. f4 {[%clk
0:00:50.2]} 18... Nxd3 {[%clk 0:01:57.7]} 19. Rxd3 {[%clk 0:00:51.1]} 19... Rg4
{[%clk 0:01:56]} 20. Nd4 {[%clk 0:00:49.5]} 20... Rhg8 {[%clk 0:01:54.9]} 21.
Nxc6+ {[%clk 0:00:49.1]} 21... Qxc6 {[%clk 0:01:55.8]} 22. Rff3 {[%clk
0:00:45.3]} 22... Qc5 {[%clk 0:01:52.9]} 23. a3 {[%clk 0:00:42.3]} 23... f5
{[%clk 0:01:38.6]} 24. exf5 {[%clk 0:00:36.9]} 24... Qxf5 {[%clk 0:01:39.5]} 25.
Qe3 {[%clk 0:00:34.9]} 25... Qa5 {[%clk 0:01:16.4]} 26. Ne2 {[%clk 0:00:30.9]}
26... d5 {[%clk 0:01:13.1]} 27. Nd4 {[%clk 0:00:30.9]} 27... Qc7 {[%clk
0:01:07.4]} 28. Rc3 {[%clk 0:00:28.1]} 28... Qd7 {[%clk 0:01:03.1]} 29. Qe5+
{[%clk 0:00:21.1]} 29... Bd6 {[%clk 0:00:59.7]} 30. Qxh5 {[%clk 0:00:21]} 30...
f5 {[%clk 0:00:49.1]} 31. Rfe3 {[%clk 0:00:15.5]} 31... R4g6 {[%clk 0:00:45.8]}
32. Qe2 {[%clk 0:00:12.7]} 32... Re8 {[%clk 0:00:40.4]} 33. Nxf5 {[%clk
0:00:11.3]} 33... Bc5 {[%clk 0:00:37.9]} 34. Rxc5 {[%clk 0:00:11]} 1-0

[Event "Early-Titled-Tuesday-Blitz-May-14-2024"]
[Site "Chess.com"]
[Date "2024.05.14"]
[Round "10"]
[White "Resourchess"]
[Black "Journey_to_GrandMaster_YT"]
[Result "1-0"]
[WhiteElo "2416"]
[BlackElo "2535"]
[TimeControl "180+1"]
[EndTime "9:56:56 PDT"]
[Termination "Resourchess won by resignation"]

1. d4 {[%clk 0:02:59.9]} 1... d6 {[%clk 0:02:57.9]} 2. c4 {[%clk 0:02:55.7]}
2... Nf6 {[%clk 0:02:58.8]} 3. Nc3 {[%clk 0:02:55.4]} 3... e5 {[%clk 0:02:59]}
4. e3 {[%clk 0:02:50]} 4... Be7 {[%clk 0:02:57.3]} 5. Qc2 {[%clk 0:02:47.6]}
5... O-O {[%clk 0:02:56.9]} 6. Bd3 {[%clk 0:02:46.4]} 6... c6 {[%clk 0:02:56.9]}
7. Nge2 {[%clk 0:02:44.8]} 7... Re8 {[%clk 0:02:55.8]} 8. O-O {[%clk 0:02:33.4]}
8... Bf8 {[%clk 0:02:55.9]} 9. Ng3 {[%clk 0:02:31]} 9... Nbd7 {[%clk 0:02:52.5]}
10. Bd2 {[%clk 0:02:30.5]} 10... a6 {[%clk 0:02:52]} 11. a4 {[%clk 0:02:27.3]}
11... a5 {[%clk 0:02:52.3]} 12. Rae1 {[%clk 0:02:23.8]} 12... Qc7 {[%clk
0:02:49.5]} 13. f4 {[%clk 0:02:21.5]} 13... exd4 {[%clk 0:02:31.2]} 14. exd4
{[%clk 0:02:21.3]} 14... Rxe1 {[%clk 0:02:20.9]} 15. Rxe1 {[%clk 0:02:21.2]}
15... Nb8 {[%clk 0:02:21.8]} 16. f5 {[%clk 0:01:42]} 16... Na6 {[%clk
0:02:16.8]} 17. Qd1 {[%clk 0:01:35.8]} 17... Qb6 {[%clk 0:02:12.9]} 18. Be3
{[%clk 0:01:21.2]} 18... Qxb2 {[%clk 0:02:13]} 19. Nce4 {[%clk 0:01:19.2]} 19...
Nxe4 {[%clk 0:02:08.5]} 20. Nxe4 {[%clk 0:01:15.7]} 20... d5 {[%clk 0:02:07.3]}
21. cxd5 {[%clk 0:01:13.3]} 21... cxd5 {[%clk 0:02:07.1]} 22. Ng5 {[%clk
0:00:36.5]} 22... f6 {[%clk 0:01:27.6]} 23. Qh5 {[%clk 0:00:20.9]} 23... fxg5
{[%clk 0:01:21.4]} 24. f6 {[%clk 0:00:21.3]} 24... h6 {[%clk 0:00:34.9]} 25. f7+
{[%clk 0:00:17.5]} 25... Kh8 {[%clk 0:00:29.7]} 26. Qg6 {[%clk 0:00:17.4]} 26...
Bf5 {[%clk 0:00:18]} 27. Bxf5 {[%clk 0:00:15.5]} 1-0

[Event "Early-Titled-Tuesday-Blitz-May-14-2024"]
[Site "Chess.com"]
[Date "2024.05.14"]
[Round "10"]
[White "guillembaches"]
[Black "Tigranpatagonian"]
[Result "1-0"]
[WhiteElo "2549"]
[BlackElo "2375"]
[TimeControl "180+1"]
[EndTime "9:56:56 PDT"]
[Termination "guillembaches won on time"]

1. d4 {[%clk 0:03:00.9]} 1... Nf6 {[%clk 0:02:44.6]} 2. c4 {[%clk 0:03:00.2]}
2... g6 {[%clk 0:02:43.1]} 3. Nc3 {[%clk 0:02:59.9]} 3... c5 {[%clk 0:02:43.6]}
4. Nf3 {[%clk 0:02:56.7]} 4... Bg7 {[%clk 0:02:43.7]} 5. e4 {[%clk 0:02:56.1]}
5... O-O {[%clk 0:02:41.4]} 6. Be2 {[%clk 0:02:55.3]} 6... d6 {[%clk 0:02:40.5]}
7. h3 {[%clk 0:02:52.5]} 7... Nc6 {[%clk 0:02:37.3]} 8. Be3 {[%clk 0:02:52.3]}
8... cxd4 {[%clk 0:02:35.4]} 9. Nxd4 {[%clk 0:02:52.4]} 9... Bd7 {[%clk
0:02:35.3]} 10. O-O {[%clk 0:02:50.9]} 10... Rc8 {[%clk 0:02:32.5]} 11. Qd2
{[%clk 0:02:48.6]} 11... a6 {[%clk 0:02:30.1]} 12. a4 {[%clk 0:02:43]} 12... Na5
{[%clk 0:02:12.7]} 13. Rfc1 {[%clk 0:01:50.9]} 13... e5 {[%clk 0:01:01.1]} 14.
Nf3 {[%clk 0:01:28.7]} 14... Nb3 {[%clk 0:00:46]} 15. Qc2 {[%clk 0:01:22.6]}
15... Nxa1 {[%clk 0:00:43]} 16. Rxa1 {[%clk 0:01:20.4]} 16... Be6 {[%clk
0:00:25.3]} 17. b3 {[%clk 0:01:13.9]} 17... Nd7 {[%clk 0:00:19.2]} 18. Rd1
{[%clk 0:01:07]} 18... Nc5 {[%clk 0:00:17.7]} 19. b4 {[%clk 0:01:01.5]} 19...
Nd7 {[%clk 0:00:17.1]} 20. Rxd6 {[%clk 0:00:59.6]} 20... Bxc4 {[%clk 0:00:16.7]}
21. Qd2 {[%clk 0:00:53.9]} 21... Bxe2 {[%clk 0:00:15.2]} 22. Nxe2 {[%clk
0:00:48.4]} 22... Rc7 {[%clk 0:00:12.3]} 23. Bb6 {[%clk 0:00:40.6]} 23... Nxb6
{[%clk 0:00:02.2]} 24. Rxd8 {[%clk 0:00:39.5]} 24... Nc4 {[%clk 0:00:02.9]} 25.
Qd5 {[%clk 0:00:30.2]} 1-0